fUST/lending_fUST_20251028
["ID","MTS","AMOUNT","RATE_DAILY","PERIOD"]
[392539381,1761635447796,-715.89,0.00022191,2]
[392539382,1761635447805,-2003.25,0.00022191,2]
[392539383,1761635447815,-500.0,0.00022191,2]
[392539384,1761635447825,-614.29,0.00022191,2]
[392539385,1761635447834,-500.0,0.00022191,2]
[392539386,1761635447844,-500.0,0.00022191,2]
[392539387,1761635447853,-1493.81,0.00022191,2]
[392539388,1761635447862,-500.0,0.00022191,2]
[392539389,1761635447871,-1016.96,0.00022191,2]
[392539390,1761635447880,-637.23,0.00022191,2]
[392539391,1761635447890,-1173.47,0.00022191,2]
[392539392,1761635447899,-500.0,0.00022191,2]
[392539393,1761635447908,-500.0,0.00022191,2]
[392539394,1761635447917,-500.0,0.00022191,2]
[392539395,1761635447926,-1075.02,0.00022191,2]
[392539396,1761635447936,-994.98,0.00022191,2]
[392539397,1761635447945,-500.0,0.00022191,2]
[392539398,1761635447955,-500.0,0.00022191,2]
[392539399,1761635447964,-675.64,0.00022191,2]
[392539400,1761635447974,-1399.5,0.00022191,2]
[392539401,1761635447983,-722.95,0.00022191,2]
[392539402,1761635447994,-3537.59,0.00022191,2]
[392539403,1761635448003,-500.0,0.00022191,2]
[392539404,1761635448013,-500.0,0.00022191,2]
[392539405,1761635448022,-2387.11,0.00022191,2]
[392539406,1761635448032,-500.0,0.00022191,2]
[392539407,1761635448040,-500.0,0.00022191,2]
[392539408,1761635448049,-2131.55,0.00022191,2]
[392539409,1761635448058,-500.0,0.00022191,2]
[392539410,1761635448067,-12061.61,0.00022191,2]
[392539411,1761635448077,-781.37,0.00022191,2]
[392539412,1761635448086,-1649.47,0.00022191,2]
[392539413,1761635448095,-500.0,0.00022191,2]
[392539414,1761635448104,-1002.41,0.00022191,2]
[392539415,1761635448113,-500.0,0.00022191,2]
[392539416,1761635448122,-500.0,0.00022191,2]
[392539417,1761635448130,-500.0,0.00022191,2]
[392539418,1761635448139,-500.0,0.00022191,2]
[392539419,1761635448148,-500.0,0.00022191,2]
[392539420,1761635448158,-500.0,0.00022191,2]
[392539421,1761635448167,-1726.31,0.00022191,2]
[392539422,1761635448176,-686.19,0.00022191,2]
[392539423,1761635448185,-2475.29,0.00022191,2]
[392539424,1761635448196,-1842.19,0.00022191,2]
[392539425,1761635448204,-500.0,0.00022191,2]
[392539426,1761635448214,-500.0,0.00022191,2]
[392539427,1761635448222,-500.0,0.00022191,2]
[392539428,1761635448233,-699.27,0.00022191,2]
[392539429,1761635448242,-1551.56,0.00022191,2]
[392539430,1761635448252,-500.0,0.00022191,2]
[392539431,1761635448261,-529.25,0.00022191,2]
[392539432,1761635448270,-528.80590258,0.00022191,2]
[392539433,1761635448279,-500.0,0.00022191,2]
[392539434,1761635448289,-2313.89,0.00022191,2]
[392539435,1761635448299,-2035.81,0.00022191,2]
[392539436,1761635448310,-500.0,0.00022191,2]
[392539437,1761635448320,-951.2,0.00022191,2]
[392539438,1761635448330,-500.0,0.00022191,2]
[392539439,1761635448339,-526.13,0.00022191,2]
[392539440,1761635448348,-2014.9,0.00022191,2]
[392539441,1761635448358,-500.0,0.00022191,2]
[392539442,1761635448368,-890.11,0.00022191,2]
[392539443,1761635448378,-3964.38,0.00022191,2]
[392539444,1761635448388,-1023.23,0.00022191,2]
[392539445,1761635448398,-500.0,0.00022191,2]
[392539446,1761635448407,-500.0,0.00022191,2]
[392539447,1761635448417,-500.0,0.00022191,2]
[392539448,1761635448426,-2909.37,0.00022191,2]
[392539449,1761635448435,-500.0,0.00022191,2]
[392539450,1761635448445,-500.0,0.00022191,2]
[392539451,1761635448454,-500.0,0.00022191,2]
[392539452,1761635448463,-2874.27,0.00022191,2]
[392539453,1761635448472,-2741.75,0.00022191,2]
[392539454,1761635448481,-500.0,0.00022191,2]
[392539455,1761635448490,-500.0,0.00022191,2]
[392539456,1761635448499,-500.0,0.00022191,2]
[392539457,1761635448508,-1318.04,0.00022191,2]
[392539458,1761635448518,-500.0,0.00022191,2]
[392539459,1761635448527,-500.0,0.00022191,2]
[392539460,1761635448537,-500.0,0.00022191,2]
[392539461,1761635448547,-1545.04,0.00022191,2]
[392539462,1761635448556,-679.39,0.00022191,2]
[392539463,1761635448566,-500.0,0.00022191,2]
[392539464,1761635448578,-609.24,0.00022191,2]
[392539465,1761635448587,-3883.37,0.00022191,2]
[392539466,1761635448596,-1588.65,0.00022191,2]
[392539467,1761635448606,-500.0,0.00022191,2]
[392539468,1761635448615,-500.0,0.00022191,2]
[392539469,1761635448624,-500.0,0.00022191,2]
[392539470,1761635448633,-500.0,0.00022191,2]
[392539471,1761635448642,-500.0,0.00022191,2]
[392539472,1761635448652,-5972.25,0.00022191,2]
[392539473,1761635448661,-500.0,0.00022191,2]
[392539474,1761635448670,-169.09032066,0.00022191,2]
[392539475,1761635448679,-500.0,0.00022191,2]
[392539476,1761635448689,-2782.69,0.00022191,2]
[392539477,1761635448698,-1281.17,0.00022191,2]
[392539478,1761635448707,-500.0,0.00022191,2]
[392539479,1761635448716,-500.0,0.00022191,2]
[392539480,1761635448726,-500.0,0.00022191,2]
[392539481,1761635448736,-500.0,0.00022191,2]
[392539482,1761635448746,-500.0,0.00022191,2]
[392539483,1761635448756,-551.02,0.00022191,2]
[392539484,1761635448765,-500.0,0.00022191,2]
[392539485,1761635448774,-786.84,0.00022191,2]
[392539486,1761635448784,-750.43,0.00022191,2]
[392539487,1761635448793,-500.0,0.00022191,2]
[392539488,1761635448803,-645.45391815,0.00022191,2]
[392539489,1761635448813,-500.0,0.00022191,2]
[392539490,1761635448823,-3198.47,0.00022191,2]
[392539491,1761635448833,-500.0,0.00022191,2]
[392539492,1761635448843,-500.0,0.00022191,2]
[392539493,1761635448853,-858.33,0.00022191,2]
[392539494,1761635448863,-683.28,0.00022191,2]
[392539495,1761635448873,-1378.5,0.00022191,2]
[392539496,1761635448882,-2587.33,0.00022191,2]
[392539497,1761635448891,-799.95,0.00022191,2]
[392539498,1761635448901,-500.0,0.00022191,2]
[392539499,1761635448910,-543.47,0.00022191,2]
[392539500,1761635448919,-500.0,0.00022191,2]
[392539501,1761635448928,-500.0,0.00022191,2]
[392539502,1761635449081,-3561.46,0.00022191,2]
[392539503,1761635449091,-500.0,0.00022191,2]
[392539504,1761635449100,-500.0,0.00022191,2]
[392539505,1761635449109,-1913.07,0.00022191,2]
[392539506,1761635449118,-500.0,0.00022191,2]
[392539507,1761635449127,-649.31,0.00022191,2]
[392539508,1761635449138,-1884.93,0.00022191,2]
[392539509,1761635449148,-860.49,0.00022191,2]
[392539510,1761635449158,-4199.74,0.00022191,2]
[392539511,1761635449167,-3355.11,0.00022191,2]
[392539512,1761635449177,-664.29,0.00022191,2]
[392539513,1761635449187,-1833.01,0.00022191,2]
[392539514,1761635449196,-500.0,0.00022191,2]
[392539515,1761635449205,-500.0,0.00022191,2]
[392539516,1761635449215,-500.0,0.00022191,2]
[392539517,1761635449224,-609.22,0.00022191,2]
[392539518,1761635449233,-500.0,0.00022191,2]
[392539519,1761635449242,-899.79,0.00022191,2]
[392539520,1761635449251,-935.9,0.00022191,2]
[392539521,1761635449260,-500.0,0.00022191,2]
[392539522,1761635449270,-500.0,0.00022191,2]
[392539523,1761635449279,-500.0,0.00022191,2]
[392539524,1761635449288,-1821.5,0.00022191,2]
[392539525,1761635449297,-500.0,0.00022191,2]
[392539526,1761635449307,-902.01,0.00022191,2]
[392539527,1761635449316,-831.98,0.00022191,2]
[392539528,1761635449325,-500.0,0.00022191,2]
[392539529,1761635449335,-500.0,0.00022191,2]
[392539530,1761635449344,-500.0,0.00022191,2]
[392539531,1761635449353,-1900.0,0.00022383,2]
[392539532,1761635449363,-1361.7955697,0.00022451,2]
[392539533,1761635449373,-500.0,0.00022465,2]
[392539534,1761635449382,-959.62,0.00022465,2]
[392539535,1761635449391,-500.0,0.00022465,2]
[392539536,1761635449401,-500.0,0.00022465,2]
[392539537,1761635449411,-500.0,0.00022465,2]
[392539538,1761635449420,-500.0,0.00022465,2]
[392539539,1761635449429,-500.0,0.00022465,2]
[392539540,1761635449439,-500.0,0.00022465,2]
[392539541,1761635449448,-500.0,0.00022465,2]
[392539542,1761635449457,-500.0,0.00022465,2]
[392539543,1761635449467,-500.0,0.00022465,2]
[392539544,1761635449476,-382.41516925,0.00022465,2]
[392539545,1761635449486,-500.0,0.00022465,2]
[392539546,1761635449497,-1690.05,0.00022465,2]
[392539547,1761635449507,-389.6239159,0.00022465,2]
[392539548,1761635449517,-500.0,0.00022465,2]
[392539549,1761635449531,-500.0,0.00022465,2]
[392539550,1761635449542,-500.0,0.00022465,2]
[392539551,1761635449551,-500.0,0.00022465,2]
[392539552,1761635449560,-500.0,0.00022465,2]
[392539553,1761635449570,-500.0,0.00022465,2]
[392539554,1761635449580,-715.75,0.00022465,2]
[392539555,1761635449589,-500.0,0.00022465,2]
[392539556,1761635449599,-500.0,0.00022465,2]
[392539557,1761635449610,-500.0,0.00022465,2]
[392539558,1761635449623,-500.0,0.00022465,2]
[392539559,1761635449636,-500.0,0.00022465,2]
[392539560,1761635449646,-603.19,0.00022465,2]
[392539561,1761635449657,-500.0,0.00022465,2]
[392539562,1761635449666,-500.0,0.00022465,2]
[392539563,1761635449676,-1127.61,0.00022465,2]
[392539564,1761635449686,-530.38,0.00022465,2]
[392539565,1761635449696,-516.55417896,0.00022465,2]
[392539566,1761635449706,-500.0,0.00022465,2]
[392539567,1761635449715,-500.0,0.00022465,2]
[392539568,1761635449725,-634.37,0.00022465,2]
[392539569,1761635449735,-500.0,0.00022465,2]
[392539570,1761635449744,-500.0,0.00022465,2]
[392539571,1761635449756,-291.54303437,0.00022465,2]
[392539572,1761635449766,-500.0,0.00022465,2]
[392539573,1761635449775,-500.0,0.00022465,2]
[392539574,1761635449786,-1000.0,0.00022465,2]
[392539575,1761635449795,-500.0,0.00022465,2]
[392539576,1761635449805,-500.0,0.00022465,2]
[392539577,1761635449815,-638.18,0.00022465,2]
[392539578,1761635449826,-500.0,0.00022465,2]
[392539579,1761635449835,-1152.11,0.00022465,2]
[392539580,1761635449844,-500.0,0.00022465,2]
[392539581,1761635449855,-708.47,0.00022465,2]
[392539582,1761635449865,-1290.55,0.00022465,2]
[392539583,1761635449874,-537.33,0.00022465,2]
[392539584,1761635449883,-556.59,0.00022465,2]
[392539585,1761635449893,-584.67,0.00022465,2]
[392539586,1761635449903,-500.0,0.00022465,2]
[392539587,1761635449913,-500.0,0.00022465,2]
[392539588,1761635449923,-500.0,0.00022465,2]
[392539589,1761635449933,-500.0,0.00022465,2]
[392539590,1761635449943,-741.13,0.00022465,2]
[392539591,1761635449952,-500.0,0.00022465,2]
[392539592,1761635449962,-500.0,0.00022465,2]
[392539593,1761635449972,-500.0,0.00022465,2]
[392539594,1761635449983,-1281.8,0.00022465,2]
[392539595,1761635449992,-500.0,0.00022465,2]
[392539596,1761635450001,-315.38609712,0.00022465,2]
[392539597,1761635450011,-500.0,0.00022465,2]
[392539598,1761635450020,-500.0,0.00022465,2]
[392539599,1761635450029,-500.0,0.00022465,2]
[392539600,1761635450038,-500.0,0.00022465,2]
[392539601,1761635450048,-500.0,0.00022465,2]
[392539602,1761635450059,-500.0,0.00022465,2]
[392539603,1761635450068,-500.0,0.00022465,2]
[392539604,1761635450078,-500.0,0.00022465,2]
[392539605,1761635450087,-500.0,0.00022465,2]
[392539606,1761635450096,-500.0,0.00022465,2]
[392539607,1761635450105,-500.0,0.00022465,2]
[392539608,1761635450114,-991.69,0.00022465,2]
[392539609,1761635450124,-500.0,0.00022465,2]
[392539610,1761635450134,-1202.42,0.00022465,2]
[392539611,1761635450143,-500.0,0.00022465,2]
[392539612,1761635450152,-500.0,0.00022465,2]
[392539613,1761635450163,-500.0,0.00022465,2]
[392539614,1761635450175,-500.0,0.00022465,2]
[392539615,1761635450186,-569.6,0.00022465,2]
[392539616,1761635450196,-560.72,0.00022465,2]
[392539617,1761635450207,-500.0,0.00022465,2]
[392539618,1761635450216,-500.0,0.00022465,2]
[392539619,1761635450226,-336.34428474,0.00022465,2]
[392539620,1761635450235,-197.36994415,0.00022465,2]
[392539621,1761635450244,-500.0,0.00022465,2]
[392539622,1761635450254,-596.63,0.00022465,2]
[392539623,1761635450265,-500.0,0.00022465,2]
[392539624,1761635450276,-500.0,0.00022465,2]
[392539625,1761635450287,-500.0,0.00022465,2]
[392539626,1761635450296,-1041.06,0.00022465,2]
[392539627,1761635450306,-500.0,0.00022465,2]
[392539628,1761635450316,-203.16047723,0.00022465,2]
[392539629,1761635450327,-707.6,0.00022465,2]
[392539630,1761635450336,-500.0,0.00022465,2]
[392539631,1761635450347,-500.0,0.00022465,2]
[392539632,1761635450356,-500.0,0.00022465,2]
[392539633,1761635450366,-500.0,0.00022465,2]
[392539634,1761635450376,-500.0,0.00022465,2]
[392539635,1761635450387,-740.89,0.00022465,2]
[392539636,1761635450396,-500.0,0.00022465,2]
[392539637,1761635450408,-729.78,0.00022465,2]
[392539638,1761635450420,-200.29124674,0.00022465,2]
[392539639,1761635450431,-554.86,0.00022465,2]
[392539640,1761635450441,-1476.19,0.00022465,2]
[392539641,1761635450451,-500.0,0.00022465,2]
[392539642,1761635450461,-208.3547842,0.00022465,2]
[392539643,1761635450471,-955.14,0.00022465,2]
[392539644,1761635450481,-663.08,0.00022465,2]
[392539645,1761635450491,-500.0,0.00022465,2]
[392539646,1761635450501,-1193.15,0.00022465,2]
[392539647,1761635450510,-828.34,0.00022465,2]
[392539648,1761635450521,-500.0,0.00022465,2]
[392539649,1761635450530,-500.0,0.00022465,2]
[392539650,1761635450539,-1527.13,0.00022465,2]
[392539651,1761635450549,-500.0,0.00022465,2]
[392539652,1761635450559,-500.0,0.00022465,2]
[392539653,1761635450569,-500.0,0.00022465,2]
[392539654,1761635450579,-1186.35,0.00022465,2]
[392539655,1761635450590,-500.0,0.00022465,2]
[392539656,1761635450600,-846.87,0.00022465,2]
[392539657,1761635450612,-500.0,0.00022465,2]
[392539658,1761635450622,-500.0,0.00022465,2]
[392539659,1761635450632,-500.0,0.00022465,2]
[392539660,1761635450642,-499.36297181,0.00022465,2]
[392539661,1761635450652,-500.0,0.00022465,2]
[392539662,1761635450664,-2295.33,0.00022465,2]
[392539663,1761635450674,-500.0,0.00022465,2]
[392539664,1761635450684,-500.0,0.00022465,2]
[392539665,1761635450694,-598.96,0.00022465,2]
[392539666,1761635450704,-500.0,0.00022465,2]
[392539667,1761635450714,-826.63,0.00022465,2]
[392539668,1761635450723,-908.14,0.00022465,2]
[392539669,1761635450733,-500.0,0.00022465,2]
[392539670,1761635450742,-500.0,0.00022465,2]
[392539671,1761635450752,-500.0,0.00022465,2]
[392539672,1761635450761,-500.0,0.00022465,2]
[392539673,1761635450770,-500.0,0.00022465,2]
[392539674,1761635450779,-500.0,0.00022465,2]
[392539675,1761635450788,-500.0,0.00022465,2]
[392539676,1761635450798,-500.0,0.00022465,2]
[392539677,1761635450808,-826.15,0.00022465,2]
[392539678,1761635450818,-1024.07,0.00022465,2]
[392539679,1761635450828,-500.0,0.00022465,2]
[392539680,1761635450837,-508.07587015,0.00022465,2]
[392539681,1761635450847,-500.0,0.00022465,2]
[392539682,1761635450856,-500.0,0.00022465,2]
[392539683,1761635450865,-651.86,0.00022465,2]
[392539684,1761635450875,-786.57,0.00022465,2]
[392539685,1761635450884,-1120.22,0.00022465,2]
[392539686,1761635450895,-500.0,0.00022465,2]
[392539687,1761635450904,-500.0,0.00022465,2]
[392539688,1761635450914,-500.0,0.00022465,2]
[392539689,1761635450924,-500.0,0.00022465,2]
[392539690,1761635450932,-500.0,0.00022465,2]
[392539691,1761635450941,-708.44,0.00022465,2]
[392539692,1761635450950,-500.0,0.00022465,2]
[392539693,1761635450960,-592.66,0.00022465,2]
[392539694,1761635450969,-584.83,0.00022465,2]
[392539695,1761635450978,-500.0,0.00022465,2]
[392539696,1761635450987,-500.0,0.00022465,2]
[392539697,1761635450996,-500.0,0.00022465,2]
[392539698,1761635451005,-667.11,0.00022465,2]
[392539699,1761635451014,-1435.66,0.00022465,2]
[392539700,1761635451023,-500.0,0.00022465,2]
[392539701,1761635451032,-2653.88,0.00022465,2]
[392539702,1761635451042,-500.0,0.00022465,2]
[392539703,1761635451051,-704.69,0.00022465,2]
[392539704,1761635451065,-500.0,0.00022465,2]
[392539705,1761635451074,-500.0,0.00022465,2]
[392539706,1761635451083,-794.41,0.00022465,2]
[392539707,1761635451092,-1040.78,0.00022465,2]
[392539708,1761635451102,-500.0,0.00022465,2]
[392539709,1761635451111,-1280.75,0.00022465,2]
[392539710,1761635451120,-915.53,0.00022465,2]
[392539711,1761635451131,-2189.92,0.00022465,2]
[392539712,1761635451142,-500.0,0.00022465,2]
[392539713,1761635451152,-500.0,0.00022465,2]
[392539714,1761635451162,-574.84,0.00022465,2]
[392539715,1761635451173,-500.0,0.00022465,2]
[392539716,1761635451183,-1776.07,0.00022465,2]
[392539717,1761635451192,-500.0,0.00022465,2]
[392539718,1761635451202,-517.1676996,0.00022465,2]
[392539719,1761635451212,-885.22,0.00022465,2]
[392539720,1761635451221,-500.0,0.00022465,2]
[392539721,1761635451229,-1000.0,0.00022465,2]
[392539722,1761635451239,-514.33466945,0.00022465,2]
[392539723,1761635451247,-648.19,0.00022465,2]
[392539724,1761635451256,-1413.33,0.00022465,2]
[392539725,1761635451267,-500.0,0.00022465,2]
[392539726,1761635451277,-500.0,0.00022465,2]
[392539727,1761635451288,-554.63961288,0.00022465,2]
[392539728,1761635451297,-1472.19,0.00022465,2]
[392539729,1761635451307,-500.0,0.00022465,2]
[392539730,1761635451317,-500.0,0.00022465,2]
[392539731,1761635451327,-500.0,0.00022465,2]
[392539732,1761635451338,-894.76,0.00022465,2]
[392539733,1761635451351,-3175.04,0.00022465,2]
[392539734,1761635451360,-500.0,0.00022465,2]
[392539735,1761635451369,-500.0,0.00022465,2]
[392539736,1761635451380,-500.0,0.00022465,2]
[392539737,1761635451390,-500.0,0.00022465,2]
[392539738,1761635451401,-670.41,0.00022465,2]
[392539739,1761635451411,-558.04,0.00022465,2]
[392539740,1761635451421,-500.0,0.00022465,2]
[392539741,1761635451431,-500.0,0.00022465,2]
[392539742,1761635451441,-500.0,0.00022465,2]
[392539743,1761635451450,-1443.63,0.00022465,2]
[392539744,1761635451459,-500.0,0.00022465,2]
[392539745,1761635451468,-500.0,0.00022465,2]
[392539746,1761635451477,-500.0,0.00022465,2]
[392539747,1761635451486,-500.0,0.00022465,2]
[392539748,1761635451495,-525.14604,0.00022465,2]
[392539749,1761635451504,-532.74,0.00022465,2]
[392539750,1761635451654,-500.0,0.00022465,2]
[392539751,1761635451664,-500.0,0.00022465,2]
[392539752,1761635451673,-500.0,0.00022465,2]
[392539753,1761635451682,-500.0,0.00022465,2]
[392539754,1761635451693,-500.0,0.00022465,2]
[392539755,1761635451703,-799.0,0.00022465,2]
[392539756,1761635451712,-500.0,0.00022465,2]
[392539757,1761635451721,-901.78,0.00022465,2]
[392539758,1761635451730,-500.0,0.00022465,2]
[392539759,1761635451739,-500.0,0.00022465,2]
[392539760,1761635451749,-500.0,0.00022465,2]
[392539761,1761635451758,-500.0,0.00022465,2]
[392539762,1761635451767,-500.0,0.00022465,2]
[392539763,1761635451776,-714.71,0.00022465,2]
[392539764,1761635451785,-172.79725082,0.00022465,2]
[392539765,1761635451795,-500.0,0.00022465,2]
[392539766,1761635451806,-1226.97,0.00022465,2]
[392539767,1761635451817,-995.93,0.00022465,2]
[392539768,1761635451828,-500.0,0.00022465,2]
[392539769,1761635451839,-933.25,0.00022465,2]
[392539770,1761635451849,-500.0,0.00022465,2]
[392539771,1761635451858,-842.36,0.00022465,2]
[392539772,1761635451867,-590.93,0.00022465,2]
[392539773,1761635451876,-682.73,0.00022465,2]
[392539774,1761635451885,-500.0,0.00022465,2]
[392539775,1761635451894,-1269.67,0.00022465,2]
[392539776,1761635451906,-500.0,0.00022465,2]
[392539777,1761635451916,-500.0,0.00022465,2]
[392539778,1761635451926,-500.0,0.00022465,2]
[392539779,1761635451936,-500.0,0.00022465,2]
[392539780,1761635451946,-500.0,0.00022465,2]
[392539781,1761635451956,-500.0,0.00022465,2]
[392539782,1761635451967,-500.0,0.00022465,2]
[392539783,1761635451978,-418.83745052,0.00022465,2]
[392539784,1761635451988,-500.0,0.00022465,2]
[392539785,1761635451997,-500.0,0.00022465,2]
[392539786,1761635452009,-500.0,0.00022465,2]
[392539787,1761635452020,-500.0,0.00022465,2]
[392539788,1761635452031,-1548.62,0.00022465,2]
[392539789,1761635452040,-648.16,0.00022465,2]
[392539790,1761635452050,-1713.43,0.00022465,2]
[392539791,1761635452059,-570.4,0.00022465,2]
[392539792,1761635452068,-500.0,0.00022465,2]
[392539793,1761635452078,-500.0,0.00022465,2]
[392539794,1761635452087,-807.86,0.00022465,2]
[392539795,1761635452096,-500.0,0.00022465,2]
[392539796,1761635452105,-607.99,0.00022465,2]
[392539797,1761635452115,-962.45,0.00022465,2]
[392539798,1761635452124,-500.0,0.00022465,2]
[392539799,1761635452133,-621.4,0.00022465,2]
[392539800,1761635452142,-1597.02,0.00022465,2]
[392539801,1761635452151,-500.0,0.00022465,2]
[392539802,1761635452160,-1840.85,0.00022465,2]
[392539803,1761635452170,-480.53902779,0.00022465,2]
[392539804,1761635452179,-500.0,0.00022465,2]
[392539805,1761635452188,-500.0,0.00022465,2]
[392539806,1761635452197,-1281.11,0.00022465,2]
[392539807,1761635452207,-1245.66,0.00022465,2]
[392539808,1761635452216,-500.0,0.00022465,2]
[392539809,1761635452225,-500.0,0.00022465,2]
[392539810,1761635452235,-500.0,0.00022465,2]
[392539811,1761635452245,-1763.97,0.00022465,2]
[392539812,1761635452254,-540.2,0.00022465,2]
[392539813,1761635452264,-2436.61,0.00022465,2]
[392539814,1761635452273,-500.0,0.00022465,2]
[392539815,1761635452283,-1315.04,0.00022465,2]
[392539816,1761635452292,-500.0,0.00022465,2]
[392539817,1761635452301,-3051.8,0.00022465,2]
[392539818,1761635452312,-500.0,0.00022465,2]
[392539819,1761635452323,-500.0,0.00022465,2]
[392539820,1761635452334,-854.16,0.00022465,2]
[392539821,1761635452346,-500.0,0.00022465,2]
[392539822,1761635452355,-500.0,0.00022465,2]
[392539823,1761635452366,-1296.21,0.00022465,2]
[392539824,1761635452376,-558.93,0.00022465,2]
[392539825,1761635452385,-500.0,0.00022465,2]
[392539826,1761635452395,-567.19,0.00022465,2]
[392539827,1761635452405,-500.0,0.00022465,2]
[392539828,1761635452415,-538.03,0.00022465,2]
[392539829,1761635452425,-693.14,0.00022465,2]
[392539830,1761635452435,-500.0,0.00022465,2]
[392539831,1761635452445,-729.65,0.00022465,2]
[392539832,1761635452455,-500.0,0.00022465,2]
[392539833,1761635452464,-475.98002073,0.00022465,2]
[392539834,1761635452476,-500.0,0.00022465,2]
[392539835,1761635452486,-500.0,0.00022465,2]
[392539836,1761635452496,-811.98,0.00022465,2]
[392539837,1761635452506,-1562.88,0.00022465,2]
[392539838,1761635452516,-610.16,0.00022465,2]
[392539839,1761635452525,-500.0,0.00022465,2]
[392539840,1761635452538,-500.0,0.00022465,2]
[392539841,1761635452547,-500.0,0.00022465,2]
[392539842,1761635452557,-1066.35,0.00022465,2]
[392539843,1761635452566,-608.81,0.00022465,2]
[392539844,1761635452576,-500.0,0.00022465,2]
[392539845,1761635452586,-600.01,0.00022465,2]
[392539846,1761635452595,-500.0,0.00022465,2]
[392539847,1761635452604,-500.0,0.00022465,2]
[392539848,1761635452613,-1001.11,0.00022465,2]
[392539849,1761635452623,-632.42,0.00022465,2]
[392539850,1761635452634,-961.06,0.00022465,2]
[392539851,1761635452644,-1172.41,0.00022465,2]
[392539852,1761635452654,-500.0,0.00022465,2]
[392539853,1761635452663,-675.95,0.00022465,2]
[392539854,1761635452673,-500.0,0.00022465,2]
[392539855,1761635452683,-500.0,0.00022465,2]
[392539856,1761635452693,-537.35,0.00022465,2]
[392539857,1761635452703,-622.73,0.00022465,2]
[392539858,1761635452712,-500.0,0.00022465,2]
[392539859,1761635452722,-1475.32,0.00022465,2]
[392539860,1761635452732,-943.69,0.00022465,2]
[392539861,1761635452742,-527.73,0.00022465,2]
[392539862,1761635452753,-500.0,0.00022465,2]
[392539863,1761635452763,-500.0,0.00022465,2]
[392539864,1761635452773,-546.22,0.00022465,2]
[392539865,1761635452786,-802.51,0.00022465,2]
[392539866,1761635452795,-500.0,0.00022465,2]
[392539867,1761635452805,-1323.07,0.00022465,2]
[392539868,1761635452815,-500.0,0.00022465,2]
[392539869,1761635452824,-1081.49,0.00022465,2]
[392539870,1761635452834,-808.32,0.00022465,2]
[392539871,1761635452843,-500.0,0.00022465,2]
[392539872,1761635452852,-500.0,0.00022465,2]
[392539873,1761635452861,-2191.24,0.00022465,2]
[392539874,1761635452871,-500.0,0.00022465,2]
[392539875,1761635452880,-500.0,0.00022465,2]
[392539876,1761635452889,-918.7,0.00022465,2]
[392539877,1761635452899,-475.75171836,0.00022465,2]
[392539878,1761635452908,-649.38,0.00022465,2]
[392539879,1761635452918,-500.0,0.00022465,2]
[392539880,1761635452927,-870.92,0.00022465,2]